bitfinex/quotes_BTCUSD_20250313
["timestamp","ask_amount","ask_price","bid_price","bid_amount"]
[1741898056789,0.86976435,80853.0,80852.0,0.0014405]
[1741898057273,0.8552235,80853.0,80852.0,0.0014405]
[1741898057805,0.8552235,80853.0,80852.0,0.0824405]
[1741898060876,0.86976435,80853.0,80852.0,0.0014405]
[1741898061488,0.70357219,80853.0,80852.0,0.0014405]
[1741898061688,0.54646537,80853.0,80852.0,0.0014405]
[1741898062703,0.66642626,80853.0,80852.0,5e-07]
[1741898063500,0.94703884,80853.0,80852.0,5e-07]
[1741898064029,0.96825964,80853.0,80852.0,0.0010005]
[1741898064670,0.97625964,80853.0,80852.0,5e-07]
[1741898064889,0.97625964,80853.0,80840.0,0.0619378]
[1741898064890,0.77430885,80841.0,80840.0,0.0619378]
[1741898065091,1.07430885,80841.0,80840.0,8e-07]
[1741898066024,0.57430885,80841.0,80840.0,8e-07]
[1741898066233,0.57630885,80841.0,80840.0,8e-07]
[1741898066437,0.59570019,80841.0,80840.0,8e-07]
[1741898066640,0.62107603,80841.0,80840.0,8e-07]
[1741898066835,0.70649273,80841.0,80840.0,8e-07]
[1741898067440,0.70449273,80841.0,80840.0,8e-07]
[1741898067763,0.70749273,80841.0,80840.0,8e-07]
[1741898067942,0.71680764,80841.0,80840.0,8e-07]
[1741898068340,0.71680764,80841.0,80833.0,0.0003378]
[1741898068341,0.759791,80834.0,80833.0,0.0003378]
[1741898068568,0.89429274,80834.0,80833.0,0.00046187]
[1741898070783,0.89529274,80834.0,80833.0,0.00046187]
[1741898071192,0.89429274,80834.0,80833.0,0.00046187]
[1741898071394,0.89529274,80834.0,80833.0,0.00046187]
[1741898073295,0.77533185,80834.0,80833.0,0.00046187]
[1741898076496,0.79472411,80834.0,80833.0,0.00046187]
[1741898077959,1.09472411,80834.0,80833.0,0.00046187]
[1741898078811,1.09372411,80834.0,80833.0,0.00046187]
[1741898079751,1.09472411,80834.0,80833.0,0.00146187]
[1741898079967,1.214685,80834.0,80833.0,0.00146187]
[1741898080767,1.09872411,80834.0,80833.0,0.00146187]
[1741898082001,0.79872411,80834.0,80833.0,0.07746187]
[1741898082407,0.79472411,80834.0,80833.0,0.07746187]
[1741898082635,0.29472411,80834.0,80833.0,0.07746187]
[1741898082829,0.29772411,80834.0,80833.0,0.07746187]
[1741898083473,0.27833185,80834.0,80833.0,0.07746187]
[1741898085294,0.33156685,80834.0,80833.0,0.00146187]
[1741898085492,0.27833185,80834.0,80833.0,0.00146187]
[1741898086437,0.29772426,80834.0,80833.0,0.00146187]
[1741898086784,0.25981,80828.0,80827.0,0.06360726]
[1741898086992,0.27435085,80828.0,80827.0,0.06364858]
[1741898087871,0.29374377,80828.0,80827.0,0.06364858]
[1741898088068,0.29574377,80828.0,80827.0,0.06364858]
[1741898088496,0.29574377,80828.0,80827.0,4.132e-05]
[1741898088713,0.03593377,80828.0,80827.0,4.132e-05]
[1741898089562,0.29574377,80828.0,80827.0,4.132e-05]
[1741898089762,0.29574377,80828.0,80827.0,0.07624132]
[1741898089967,0.29674377,80828.0,80827.0,0.07624132]
[1741898090789,0.41670466,80828.0,80827.0,4.132e-05]
[1741898090992,0.29674377,80828.0,80827.0,4.132e-05]
[1741898092334,0.62106508,80828.0,80827.0,4.132e-05]
[1741898093092,0.76518508,80828.0,80827.0,4.132e-05]
[1741898093295,0.76418508,80828.0,80827.0,4.132e-05]
[1741898093420,0.74479216,80828.0,80827.0,4.132e-05]
[1741898093780,0.27436985,80822.0,80821.0,0.0003378]
[1741898094425,0.57436985,80822.0,80821.0,0.0003378]
[1741898094617,0.559839,80819.0,80818.0,6e-07]
[1741898094877,0.012375,80807.0,80806.0,0.0782]
[1741898095042,0.259878,80807.0,80806.0,0.07861385]
[1741898096443,0.260878,80807.0,80806.0,0.07861385]
[1741898096851,0.28027544,80807.0,80806.0,0.07861385]
[1741898097678,0.29376384,80807.0,80806.0,0.09145658]
[1741898097911,0.29376384,80807.0,80806.0,0.07861385]
[1741898098542,0.29276384,80807.0,80806.0,0.07861385]
[1741898098758,0.29376384,80807.0,80806.0,0.07861385]
[1741898099077,0.29276384,80807.0,80806.0,0.07861385]
[1741898099272,0.30207145,80807.0,80806.0,0.07861385]
[1741898099478,0.30307145,80807.0,80806.0,0.07861385]
[1741898100202,0.30307145,80807.0,80806.0,0.07895185]
[1741898100526,0.04626084,80807.0,80806.0,0.13762838]
[1741898100682,0.04626084,80807.0,80806.0,0.12475185]
[1741898102736,0.05379064,80807.0,80806.0,0.12475185]
[1741898103489,0.06616564,80807.0,80806.0,0.12475185]
[1741898105039,0.0467682,80807.0,80806.0,0.12475185]
[1741898105295,0.0343932,80807.0,80806.0,0.12475185]
[1741898106548,0.0343932,80807.0,80806.0,0.13732838]
[1741898106768,0.0343932,80807.0,80806.0,0.39720938]
[1741898107235,0.0343932,80807.0,80806.0,0.13732838]
[1741898107989,0.05378915,80807.0,80806.0,0.13732838]
[1741898108811,0.05378915,80807.0,80806.0,0.12475185]
[1741898112120,0.2475,80809.0,80806.0,0.12475185]
[1741898112408,0.2475,80808.0,80806.0,0.12475185]
[1741898113118,0.012375,80807.0,80806.0,0.12475185]
[1741898113569,0.27320911,80808.0,80806.0,0.13732838]
[1741898114123,0.02570911,80808.0,80806.0,0.05912838]
[1741898114332,0.02570911,80808.0,80807.0,0.0804]
[1741898115282,0.02470911,80808.0,80807.0,0.0804]
[1741898115439,0.02470911,80808.0,80807.0,0.09838318]
[1741898115644,0.247499,80809.0,80807.0,0.09738318]
[1741898115980,0.01939648,80808.0,80807.0,0.09738318]
[1741898116309,0.02039648,80808.0,80807.0,0.09838318]
[1741898116494,0.02039648,80808.0,80807.0,0.09738318]
[1741898116839,0.02039648,80808.0,80807.0,0.09838318]
[1741898117287,0.01939648,80808.0,80807.0,0.09738318]
[1741898118851,0.02039648,80808.0,80807.0,0.09838318]
[1741898119030,0.04556263,80808.0,80807.0,0.09838318]
[1741898119232,0.02039648,80808.0,80807.0,0.09838318]
[1741898120169,0.03277148,80808.0,80807.0,0.09838318]
[1741898120578,0.03277148,80808.0,80807.0,0.0804]
[1741898122153,0.05805377,80808.0,80807.0,0.0804]
[1741898122740,0.04567877,80808.0,80807.0,0.0804]
[1741898123389,0.02628229,80808.0,80807.0,0.0804]
[1741898125282,0.02645129,80808.0,80807.0,0.0804]
[1741898126395,0.04584742,80808.0,80807.0,0.0804]
[1741898127674,0.02056513,80808.0,80807.0,0.0804]
[1741898127899,0.02056513,80808.0,80807.0,0.340278]
[1741898129065,0.01956513,80808.0,80807.0,0.339278]
[1741898129415,0.02056513,80808.0,80807.0,0.340278]
[1741898133308,0.001169,80808.0,80807.0,0.340278]
[1741898135732,0.001169,80808.0,80807.0,0.530458]
[1741898135957,0.001169,80808.0,80807.0,0.830458]
[1741898136158,0.000169,80816.0,80815.0,0.690651]
[1741898136749,0.01956083,80816.0,80815.0,0.690651]
[1741898137960,0.02056083,80816.0,80815.0,0.691651]
[1741898138575,0.02056083,80816.0,80815.0,0.697651]
[1741898138795,0.02056083,80816.0,80815.0,0.691651]
[1741898139201,0.02056083,80816.0,80815.0,0.697651]
[1741898141884,0.02056083,80816.0,80815.0,0.72249514]
[1741898143726,0.000169,80834.0,80833.0,0.383294]
[1741898143928,0.000169,80834.0,80833.0,0.527334]
[1741898145235,0.000169,80834.0,80833.0,0.528334]
[1741898145798,0.000169,80834.0,80833.0,0.21984]
[1741898145999,0.001169,80834.0,80833.0,0.237211]
[1741898146201,0.001169,80834.0,80833.0,0.243211]
[1741898147218,0.001169,80834.0,80833.0,0.232711]
[1741898147498,0.001169,80834.0,80833.0,0.276611]
[1741898147499,0.000169,80834.0,80833.0,0.276611]
[1741898147638,0.000169,80834.0,80833.0,0.582611]
[1741898148034,0.000169,80834.0,80833.0,0.585611]
[1741898148460,0.000169,80834.0,80833.0,0.582611]
[1741898148797,0.000169,80834.0,80833.0,0.588611]
[1741898148959,0.000169,80834.0,80833.0,0.582611]
[1741898149157,0.000169,80834.0,80833.0,0.588611]
[1741898149368,0.000169,80834.0,80833.0,0.582611]
[1741898149838,0.000169,80834.0,80833.0,0.576611]
[1741898150035,0.000169,80834.0,80833.0,0.582611]
[1741898150233,0.000169,80834.0,80833.0,0.2702]
[1741898150234,0.01955613,80834.0,80833.0,0.2702]
[1741898150435,0.01955613,80834.0,80833.0,0.529994]
[1741898150845,0.01955613,80834.0,80833.0,0.535994]
[1741898151303,0.01955613,80834.0,80833.0,0.529994]
[1741898151678,0.01955613,80834.0,80833.0,0.2742]
[1741898151874,0.01955613,80834.0,80833.0,0.521623]
[1741898152083,0.01955613,80834.0,80833.0,0.533994]
[1741898152315,0.05157558,80834.0,80833.0,0.533994]
[1741898152510,0.01955613,80834.0,80833.0,0.533994]
[1741898152719,0.01955613,80834.0,80833.0,0.527994]
[1741898153162,0.01955613,80834.0,80833.0,0.533994]
[1741898153895,0.000169,80834.0,80833.0,0.533994]
[1741898155845,0.000169,80834.0,80833.0,0.533994]
[1741898156704,0.01955759,80834.0,80833.0,0.533994]
[1741898157332,0.01955759,80834.0,80833.0,0.533954]
[1741898160055,0.01955759,80834.0,80833.0,0.534292]
[1741898164514,0.01955759,80834.0,80833.0,0.485392]
[1741898165350,0.000169,80834.0,80833.0,0.485392]
[1741898166808,0.000169,80834.0,80833.0,0.225598]
[1741898167009,0.000169,80834.0,80833.0,0.237969]
[1741898168447,0.0195577,80834.0,80833.0,0.237969]
[1741898170187,0.0195577,80834.0,80833.0,0.537969]
[1741898173372,0.000169,80834.0,80833.0,0.537969]
[1741898173997,0.2432291,80844.0,80840.0,0.259769]
[1741898174382,0.03102189,80845.0,80841.0,0.247397]
[1741898174565,0.23111656,80847.0,80841.0,0.247397]
[1741898174764,0.03227487,80847.0,80845.0,0.247385]
[1741898174965,0.03227487,80847.0,80845.0,0.259754]
[1741898175366,0.03227487,80847.0,80842.0,0.247393]
[1741898175817,0.03227487,80847.0,80843.0,0.24739]
[1741898176517,0.03227487,80847.0,80844.0,0.247388]
[1741898176652,0.05166252,80847.0,80844.0,0.247388]
[1741898176851,0.05166252,80847.0,80845.0,0.001]
[1741898177318,0.05166252,80847.0,80844.0,0.247388]
[1741898177800,0.05166252,80847.0,80844.0,0.248388]
[1741898178317,0.05166252,80847.0,80844.0,0.001]
[1741898179054,0.05166252,80847.0,80844.0,0.007]
[1741898179992,0.29904452,80847.0,80844.0,0.007]
[1741898180190,0.247385,80846.0,80844.0,0.007]
[1741898181066,0.247385,80846.0,80844.0,0.006]
[1741898181286,0.05166252,80847.0,80844.0,0.007]
[1741898182824,0.05166252,80847.0,80843.0,0.24739]
[1741898183128,0.05166252,80847.0,80844.0,0.007]
[1741898183386,0.05166252,80847.0,80844.0,0.001]
[1741898183682,0.05166252,80847.0,80844.0,0.006]
[1741898183908,0.05183142,80847.0,80844.0,0.006]
[1741898184637,0.05183142,80847.0,80844.0,0.253389]
[1741898184818,0.05183142,80847.0,80844.0,0.006]
[1741898185152,0.01968043,80847.0,80846.0,0.259752]
[1741898185353,0.00029278,80847.0,80846.0,0.259752]
[1741898186300,0.00029278,80847.0,80846.0,0.265752]
[1741898186661,0.00029278,80847.0,80846.0,0.262752]
[1741898186797,0.00029278,80847.0,80846.0,0.268752]
[1741898186998,0.00029278,80847.0,80846.0,0.265752]
[1741898187243,0.00029278,80847.0,80846.0,0.259752]
[1741898187384,0.00029278,80847.0,80846.0,0.265752]
[1741898187590,0.00029278,80847.0,80846.0,0.022369]
[1741898188042,0.00029278,80847.0,80846.0,0.01]
[1741898188696,0.02351273,80847.0,80846.0,0.01]
[1741898189091,0.02351273,80847.0,80846.0,0.006]
[1741898189715,0.02351273,80847.0,80843.0,0.2477298]
[1741898189923,0.00029278,80847.0,80843.0,0.2477298]
[1741898190213,0.00029278,80847.0,80846.0,0.006]
[1741898190389,0.00029278,80847.0,80846.0,0.001]
[1741898190559,0.00029278,80847.0,80846.0,0.007]
[1741898190760,0.00029278,80847.0,80844.0,0.247387]
[1741898190983,0.01938741,80850.0,80843.0,0.2477278]
[1741898191191,0.01948455,80850.0,80843.0,0.0063378]
[1741898191578,0.247382,80847.0,80843.0,0.0003378]
[1741898192146,0.247382,80847.0,80843.0,0.0013378]
[1741898192733,0.26685855,80850.0,80845.0,0.012369]
[1741898192936,0.26685855,80850.0,80846.0,0.006]
[1741898193123,0.26685855,80850.0,80845.0,0.012369]
[1741898193351,0.247376,80849.0,80844.0,0.247387]
[1741898193535,0.247376,80849.0,80843.0,0.0073378]
[1741898193737,0.247376,80849.0,80843.0,0.0003378]
[1741898193938,0.247383,80847.0,80845.0,0.006]
[1741898194274,0.24738,80848.0,80843.0,0.0003378]
[1741898194481,0.01948455,80850.0,80843.0,0.2600988]
[1741898194638,0.26685655,80850.0,80844.0,0.006]
[1741898195254,0.247381,80847.0,80844.0,0.006]
[1741898196003,0.247381,80847.0,80844.0,0.0063378]
[1741898196204,0.247381,80847.0,80844.0,0.0003378]
[1741898196582,0.247381,80847.0,80845.0,0.006]
[1741898196791,0.247381,80847.0,80844.0,0.0003378]
[1741898196979,0.247381,80847.0,80844.0,0.0063378]
[1741898197508,0.247385,80846.0,80844.0,0.0073378]
[1741898197729,0.27060828,80846.0,80844.0,0.0073378]
[1741898198486,0.27060828,80846.0,80844.0,0.0063378]
[1741898198694,0.27060828,80846.0,80844.0,0.0073378]
[1741898198896,0.247385,80846.0,80844.0,0.0073378]
[1741898199322,0.247385,80846.0,80844.0,0.0013378]
[1741898199519,0.247385,80846.0,80844.0,0.0073378]
[1741898200135,0.26677355,80846.0,80844.0,0.0073378]
[1741898203056,0.01938855,80846.0,80845.0,0.012369]
[1741898203235,0.01938855,80846.0,80845.0,0.090769]
[1741898203467,0.0001689,80848.0,80847.0,0.012369]
[1741898206380,0.0001689,80848.0,80847.0,0.15160579]
[1741898206568,0.0001689,80848.0,80847.0,0.14560579]
[1741898206722,0.0001689,80848.0,80847.0,0.15160579]
[1741898207737,0.01955529,80848.0,80847.0,0.15160579]
[1741898207938,0.01955529,80848.0,80847.0,0.150369]
[1741898209863,0.01955529,80848.0,80847.0,0.0921]
[1741898210426,0.01955529,80848.0,80847.0,0.009]
[1741898211077,0.01955529,80848.0,80847.0,0.006]
[1741898211908,0.26693229,80848.0,80847.0,0.006]
[1741898212337,0.29015478,80848.0,80847.0,0.006]
[1741898212490,0.29015478,80848.0,80847.0,0.008]
[1741898212687,0.29015478,80848.0,80847.0,0.002]
[1741898214032,0.29015478,80848.0,80847.0,0.008]
[1741898215419,0.26693229,80848.0,80847.0,0.008]
[1741898216116,0.2475459,80848.0,80847.0,0.008]
[1741898218333,0.0001689,80848.0,80847.0,0.25538]
[1741898218567,0.0001689,80848.0,80847.0,0.008]
[1741898219464,0.0001689,80848.0,80847.0,0.151769]
[1741898219873,0.01955593,80848.0,80847.0,0.151769]
[1741898220247,0.01955593,80848.0,80847.0,0.1394]
[1741898220662,0.01955593,80848.0,80847.0,0.1397378]
[1741898221070,0.01955593,80848.0,80847.0,0.1521068]
[1741898223572,0.0001689,80848.0,80847.0,0.1521068]
[1741898226362,0.01955568,80848.0,80847.0,0.1521068]
[1741898233381,0.0001689,80848.0,80847.0,0.1521068]
[1741898236387,0.01955577,80848.0,80847.0,0.1521068]
[1741898236971,0.01955577,80848.0,80847.0,0.3379178]
[1741898237351,0.01237,80837.0,80830.0,0.0467]
[1741898237565,0.012369,80842.0,80834.0,0.14376]
[1741898237923,0.24741,80838.0,80834.0,0.14376]
[1741898238127,0.247402,80840.0,80834.0,0.14376]
[1741898238278,0.21131589,80844.0,80835.0,0.01237]
[1741898238474,0.012369,80844.0,80835.0,0.01237]
[1741898238817,0.247407,80839.0,80834.0,0.403549]
[1741898239168,0.247411,80838.0,80834.0,0.14376]
[1741898239364,0.247411,80838.0,80833.0,0.006338]
[1741898239365,0.247415,80836.0,80833.0,0.010338]
[1741898239592,0.259791,80834.0,80833.0,0.004338]
[1741898240001,0.259791,80834.0,80833.0,0.0151478]
[1741898240210,0.259791,80834.0,80833.0,0.000338]
[1741898241397,0.259791,80834.0,80833.0,0.003338]
[1741898242381,0.313491,80834.0,80833.0,0.003338]
[1741898242591,0.313491,80834.0,80833.0,0.009338]
[1741898242827,0.313491,80834.0,80833.0,0.003338]
[1741898243153,0.313491,80834.0,80833.0,0.006338]
[1741898243545,0.313491,80834.0,80833.0,0.001338]
[1741898243742,0.313491,80834.0,80833.0,0.007338]
[1741898243984,0.313491,80834.0,80833.0,0.006338]
[1741898244197,0.259791,80834.0,80833.0,0.006338]
[1741898244399,0.260791,80834.0,80833.0,0.006338]
[1741898245900,0.02444567,80834.0,80833.0,0.006338]
[1741898246097,0.03681667,80834.0,80833.0,0.006338]
[1741898246345,0.05120789,80834.0,80833.0,0.006338]
[1741898246500,0.29862789,80834.0,80833.0,0.006338]
[1741898246846,0.12089606,80834.0,80833.0,0.006338]
[1741898247048,0.14028725,80834.0,80833.0,0.006338]
[1741898247451,0.17731733,80834.0,80833.0,0.006338]
[1741898254648,0.69185818,80834.0,80833.0,0.006338]
[1741898254885,1.02616699,80834.0,80833.0,0.006338]
[1741898255693,1.02616699,80834.0,80833.0,0.000338]
[1741898255895,1.02616699,80834.0,80833.0,0.006338]
[1741898256533,1.03016699,80834.0,80833.0,0.006338]
[1741898256755,1.03016699,80834.0,80809.0,0.246833]
[1741898256756,0.247484,80814.0,80809.0,0.246833]
[1741898256961,0.21517652,80816.0,80809.0,0.246833]
[1741898257560,0.247484,80814.0,80809.0,0.246833]
[1741898258123,0.247484,80814.0,80809.0,0.24895688]
[1741898258314,0.21517652,80816.0,80809.0,0.24895688]
[1741898258521,0.247494,80810.0,80809.0,0.00212388]
[1741898258732,0.247494,80810.0,80809.0,0.01475143]
[1741898259219,0.01939512,80810.0,80809.0,0.01475143]
[1741898259369,0.01939512,80810.0,80809.0,0.01775143]
[1741898259549,0.0586304,80810.0,80809.0,0.01775143]
[1741898259747,0.0586304,80810.0,80809.0,0.01475143]
[1741898259974,0.0596304,80810.0,80809.0,0.00312388]
[1741898260170,0.0720044,80810.0,80809.0,0.00412388]
[1741898260813,0.0720044,80810.0,80809.0,0.00312388]
[1741898261190,0.0720044,80810.0,80809.0,0.00512388]
[1741898263323,0.05260928,80810.0,80809.0,0.00512388]
[1741898264845,0.04023528,80810.0,80809.0,0.00512388]
[1741898265227,0.05260928,80810.0,80809.0,0.00512388]
[1741898266775,0.05260928,80810.0,80809.0,0.00546188]
[1741898267508,0.001,80810.0,80809.0,0.13516188]
[1741898267739,0.001,80810.0,80809.0,0.15252573]
[1741898267868,0.02039507,80810.0,80809.0,0.15252573]
[1741898273171,0.02039507,80810.0,80809.0,0.00546188]
[1741898273476,0.013374,80810.0,80809.0,0.00546188]
[1741898275127,0.013374,80810.0,80809.0,0.00346188]
[1741898275320,0.013374,80810.0,80809.0,0.00446188]
[1741898275524,0.012374,80810.0,80809.0,0.00146188]
[1741898275757,0.013374,80810.0,80809.0,0.00446188]
[1741898275956,0.013374,80810.0,80809.0,0.00346188]
[1741898276141,0.012374,80810.0,80809.0,0.00146188]
[1741898276551,0.03177116,80810.0,80809.0,0.00146188]
[1741898276784,0.03277116,80810.0,80809.0,0.00446188]
[1741898277332,0.247521,80801.0,80795.0,0.24700628]
[1741898277587,0.247526,80800.0,80795.0,0.24742013]
[1741898277922,0.247529,80799.0,80795.0,0.24742013]
[1741898278457,0.247529,80799.0,80795.0,0.00041385]
[1741898278960,0.247529,80799.0,80795.0,0.00741385]
[1741898279120,0.247529,80799.0,80795.0,0.00441385]
[1741898279347,0.248529,80799.0,80795.0,0.00341385]
[1741898279776,0.248529,80799.0,80795.0,0.00741385]
[1741898280091,0.247532,80798.0,80795.0,0.00741385]
[1741898280321,0.247536,80797.0,80795.0,0.00741385]
[1741898281218,0.26692972,80798.0,80795.0,0.00741385]
[1741898281430,0.08678916,80798.0,80795.0,0.00741385]
[1741898281759,0.01939772,80798.0,80795.0,0.00441385]
[1741898281994,0.001,80797.0,80795.0,0.00041385]
[1741898282401,0.24753,80799.0,80795.0,0.00441385]
[1741898282617,0.001,80798.0,80795.0,0.00441385]
[1741898283030,0.24753,80799.0,80795.0,0.00041385]
[1741898283253,0.001,80797.0,80795.0,0.00041385]
[1741898283442,0.001,80797.0,80795.0,0.00541385]
[1741898283589,0.24753,80799.0,80795.0,0.00541385]
[1741898283958,0.247521,80802.0,80796.0,0.247537]
[1741898284183,0.247523,80801.0,80796.0,0.247537]
[1741898284403,0.247521,80802.0,80796.0,0.247537]
[1741898284609,0.247515,80804.0,80797.0,0.259907]
[1741898284813,0.247518,80802.0,80796.0,0.247537]
[1741898284986,0.247518,80802.0,80796.0,0.259913]
[1741898284987,0.001,80798.0,80796.0,0.259913]
[1741898285186,0.247518,80802.0,80797.0,0.259906]
[1741898285529,0.001,80801.0,80797.0,0.259906]
[1741898286087,0.247518,80802.0,80797.0,0.259906]
[1741898286291,0.001,80798.0,80797.0,0.259906]
[1741898286697,0.001,80798.0,80796.0,0.259913]
[1741898286907,0.001,80798.0,80797.0,0.004]
[1741898287979,0.001,80798.0,80797.0,0.017376]
[1741898288216,0.247517,80803.0,80798.0,0.24753]
[1741898288425,0.247513,80804.0,80798.0,0.259906]
[1741898288832,0.247513,80804.0,80798.0,0.258906]
[1741898289458,0.247513,80804.0,80798.0,0.261906]
[1741898289888,0.247518,80803.0,80798.0,0.258906]
[1741898290043,0.247513,80804.0,80798.0,0.258906]
[1741898290257,0.54485,80833.0,80798.0,0.258906]
[1741898290258,0.03868508,80814.0,80801.0,0.012376]
[1741898290463,0.012373,80817.0,80812.0,0.0795]
[1741898290666,0.259847,80817.0,80812.0,0.0795]
[1741898290894,0.25984,80819.0,80813.0,0.259856]
[1741898291046,0.03322375,80817.0,80815.0,0.011373]
[1741898291248,0.02454356,80824.0,80815.0,0.057173]
[1741898291497,0.247441,80828.0,80815.0,0.057173]
[1741898291703,0.001338,80816.0,80815.0,0.057173]
[1741898292277,0.001338,80816.0,80815.0,0.059173]
[1741898292499,0.002338,80816.0,80815.0,0.059173]
[1741898292700,0.002338,80816.0,80815.0,0.057173]
[1741898292874,0.002338,80816.0,80815.0,0.059173]
[1741898292875,0.003338,80816.0,80815.0,0.059173]
[1741898293073,0.002338,80816.0,80815.0,0.059173]
[1741898293694,0.002338,80816.0,80815.0,0.060173]
[1741898293858,0.002338,80816.0,80815.0,0.139273]
[1741898295805,0.10916677,80823.0,80817.0,0.012373]
[1741898296579,0.10916677,80823.0,80818.0,0.247469]
[1741898296804,0.259819,80826.0,80818.0,0.247469]
[1741898296805,0.247448,80825.0,80818.0,0.247469]
[1741898297021,0.26684135,80825.0,80818.0,0.247469]
[1741898298043,0.001,80823.0,80818.0,0.247469]
[1741898298268,0.001,80823.0,80818.0,0.253469]
[1741898298470,0.247456,80823.0,80818.0,0.006]
[1741898298671,0.28129474,80823.0,80818.0,0.006]
[1741898298871,0.247456,80823.0,80818.0,0.006]
[1741898299063,0.247456,80823.0,80817.0,0.012373]
[1741898299469,0.26684135,80825.0,80818.0,0.006]
[1741898299625,0.012373,80819.0,80818.0,0.006]
[1741898300024,0.385473,80819.0,80818.0,0.006]
[1741898300693,0.385473,80819.0,80799.0,0.0753]
[1741898300694,0.012376,80800.0,80799.0,0.0753]
[1741898300860,0.012376,80800.0,80794.0,0.0803]
[1741898301065,0.247527,80799.0,80794.0,0.0803]
[1741898301425,0.247537,80796.0,80794.0,0.0803]
[1741898301580,0.247537,80796.0,80789.0,0.0475]
[1741898301581,0.259913,80796.0,80789.0,0.0475]
[1741898301771,0.247537,80796.0,80789.0,0.0475]
[1741898301983,0.247537,80796.0,80790.0,0.012377]
[1741898302174,0.247537,80796.0,80795.0,0.00458295]
[1741898302379,0.247537,80796.0,80795.0,0.01702895]
[1741898302701,0.247537,80796.0,80795.0,0.00702895]
[1741898303067,0.247537,80796.0,80795.0,0.01002895]
[1741898303265,0.28103204,80796.0,80795.0,0.01002895]
[1741898304011,0.28103204,80796.0,80795.0,0.01602895]
[1741898305146,0.247537,80796.0,80795.0,0.00702895]
[1741898305348,0.247537,80796.0,80795.0,0.01002895]
[1741898305574,0.247537,80796.0,80795.0,0.01602895]
[1741898305981,0.247537,80796.0,80795.0,0.00702895]
[1741898306355,0.247537,80796.0,80795.0,0.00902895]
[1741898306763,0.28196042,80796.0,80795.0,0.00902895]
[1741898307166,0.29433642,80796.0,80795.0,0.01502895]
[1741898307364,0.28196042,80796.0,80795.0,0.00858295]
[1741898307746,0.29433642,80796.0,80795.0,0.00858295]
[1741898309532,0.29433642,80796.0,80795.0,0.00658295]
[1741898309905,0.29533642,80796.0,80795.0,0.00658295]
[1741898310529,0.29533642,80796.0,80795.0,0.00058295]
[1741898310907,0.29533642,80796.0,80795.0,0.00658295]
[1741898310908,0.31473713,80796.0,80795.0,0.00658295]
[1741898312260,0.29533642,80796.0,80795.0,0.00658295]
[1741898322285,0.29533642,80796.0,80779.0,0.0832]
[1741898322286,0.247578,80783.0,80779.0,0.31830914]
[1741898322419,0.247578,80783.0,80779.0,0.3184013]
[1741898323682,0.247578,80783.0,80779.0,0.0728133]
[1741898324029,0.248578,80783.0,80779.0,0.0758133]
[1741898324392,0.001,80783.0,80779.0,0.3234003]
[1741898326129,0.001,80783.0,80779.0,0.0881923]
[1741898326364,0.001,80783.0,80780.0,0.012379]
[1741898326891,0.001,80783.0,80780.0,0.259963]
[1741898327345,0.01940196,80783.0,80780.0,0.259963]
[1741898327497,0.02040196,80783.0,80780.0,0.259963]
[1741898327706,0.02040196,80783.0,80780.0,0.261963]
[1741898327902,0.26797796,80783.0,80780.0,0.002]
[1741898328334,0.26797796,80783.0,80780.0,0.002169]
[1741898328511,0.247582,80782.0,80780.0,0.002169]
[1741898329513,0.02040196,80783.0,80780.0,0.002169]
[1741898329950,0.26797796,80783.0,80782.0,0.1263]
[1741898330154,0.012379,80781.0,80780.0,0.000169]
[1741898330347,0.247582,80781.0,80780.0,0.01122512]
[1741898330838,0.247582,80781.0,80780.0,0.00822512]
[1741898331161,0.247582,80781.0,80780.0,0.01122512]
[1741898331363,0.247582,80781.0,80780.0,0.00822512]
[1741898331575,0.248582,80781.0,80780.0,0.01122512]
[1741898332027,0.248582,80781.0,80780.0,0.01422512]
[1741898332687,0.248582,80781.0,80780.0,0.006169]
[1741898333446,0.001,80781.0,80780.0,0.006169]
[1741898333682,0.001,80781.0,80780.0,0.09748587]
[1741898333886,0.001,80781.0,80780.0,0.09748575]
[1741898334138,0.001,80781.0,80780.0,0.096248]
[1741898336705,0.0204018,80781.0,80780.0,0.14438578]
[1741898336913,0.0204018,80781.0,80780.0,0.58798566]
[1741898337136,0.0204018,80781.0,80780.0,0.586748]
[1741898337902,0.0194018,80781.0,80780.0,0.583748]
[1741898338223,0.0194018,80781.0,80780.0,0.580748]
[1741898338626,0.0204018,80781.0,80780.0,0.583748]
[1741898339083,0.0204018,80781.0,80780.0,0.59828885]
[1741898340067,0.0204018,80781.0,80780.0,0.60228885]
[1741898340729,0.0194018,80781.0,80780.0,0.59528885]
[1741898340932,0.0194018,80781.0,80780.0,0.60028885]
[1741898341408,0.0194018,80781.0,80780.0,0.64008152]
[1741898342566,2e-07,80788.0,80787.0,0.012378]
[1741898342780,2e-07,80788.0,80787.0,0.75062015]
[1741898342974,2e-07,80788.0,80787.0,0.74938285]
[1741898343382,2e-07,80788.0,80787.0,0.69938285]
[1741898343577,2e-07,80788.0,80787.0,0.74938285]
[1741898343803,2e-07,80788.0,80787.0,0.75238285]
[1741898344142,2e-07,80788.0,80787.0,0.70238285]
[1741898344374,2e-07,80788.0,80787.0,0.78022263]
[1741898344727,2e-07,80788.0,80787.0,0.73022263]
[1741898345112,2e-07,80788.0,80787.0,0.73622263]
[1741898345317,2e-07,80788.0,80787.0,0.78622263]
[1741898346898,2e-07,80788.0,80787.0,0.73622263]
[1741898347070,2e-07,80788.0,80787.0,0.78622263]
[1741898347478,2e-07,80788.0,80787.0,0.73622263]
[1741898347685,2e-07,80788.0,80787.0,0.78622263]
[1741898347979,2e-07,80788.0,80787.0,0.73622263]
[1741898348193,2e-07,80788.0,80787.0,0.78622263]
[1741898350642,2e-07,80788.0,80787.0,0.73622263]
[1741898351343,2e-07,80788.0,80787.0,0.78622263]
[1741898352855,2e-07,80788.0,80787.0,0.73622263]
[1741898353066,2e-07,80788.0,80787.0,0.78622263]
[1741898353267,2e-07,80788.0,80787.0,0.73622263]
[1741898353617,2e-07,80788.0,80787.0,0.72168178]
[1741898353813,2e-07,80788.0,80787.0,0.840362]
[1741898355247,2e-07,80788.0,80787.0,0.696842]
[1741898355445,2e-07,80788.0,80787.0,0.540362]
[1741898355646,2e-07,80788.0,80787.0,0.840362]